[Event "7th Leer Open-A 2024"]
[Site "Leer"]
[Date "2024.10.31"]
[Round "2.23"]
[White "Lippert, Daniel"]
[Black "Goldenstein, Arnd"]
[Result "0-1"]
[ECO "C82"]
[WhiteElo "2112"]
[BlackElo "1856"]
[Annotator "RC"]
[PlyCount "90"]
[EventDate "2024.10.14"]
[EventType "swiss"]
[EventCountry "GER"]
[SourceTitle "playchess.com"]
[Source "ChessBase"]
[SourceQuality "1"]
[TimeControl "40/5400+30:900+30"]

1. e4 {[%emt 0:00:24]} e5 {[%emt 0:00:10]} 2. Nf3 {[%emt 0:00:05]} Nc6 {[%emt 0:00:04]} 3. Bb5 {[%emt 0:00:23]} a6 {[%emt 0:00:05]} 4. Ba4 {[%emt 0:00:05]} Nf6 {[%emt 0:00:05]} 5. O-O {[%emt 0:00:05]} Nxe4 {[%emt 0:00:08]} 6. d4 {[%emt 0:00:30]} b5 {[%emt 0:00:05]} 7. Bb3 {[%emt 0:00:04]} d5 {[%emt 0:00:03]} 8. dxe5 {[%emt 0:00:19]} Be6 {[%emt 0:00:08]} 9. c3 {[%emt 0:00:43]} Bc5 {[%emt 0:00:08]} 10. Nbd2 {[%emt 0:01:38]} O-O {[%emt 0:00:08]} 11. Bc2 {[%emt 0:01:37]} Nxf2 {[%emt 0:01:48]} 12. Rxf2 {[%emt 0:00:07]} f6 {[%emt 0:00:03]} 13. Nf1 {[%emt 0:00:11]} Bxf2+ {[%emt 0:00:09]} 14. Kxf2 {[%emt 0:00:06]} fxe5 {[%emt 0:00:09]} 15. Kg1 {[%emt 0:00:05]} Qd6 {[%emt 0:17:52]} 16. Ng5 {[%emt 0:11:57]} Bf5 {[%emt 0:08:07]} 17. Bxf5 {[%emt 0:32:15]} Rxf5 {[%emt 0:00:54]} 18. Nf3 {[%emt 0:04:52]} Ne7 {[%emt 0:14:41]} 19. Bg5 {[%emt 0:05:06]} c6 {[%emt 0:05:55]} 20. a4 {[%emt 0:11:52]} Ng6 {[%emt 0:01:35]} 21. Ng3 {[%emt 0:12:56]} Qc5+ {[%emt 0:05:16]} 22. Kh1 {[%emt 0:00:13]} Rf7 {[%emt 0:05:15]} 23. Qe2 {[%emt 0:00:12]} Re8 {[%emt 0:00:06]} 24. axb5 {[%emt 0:01:44]} axb5 {[%emt 0:00:54]} 25. Be3 {[%emt 0:03:06]} Qf8 {[%emt 0:02:02]} 26. Qd2 {[%emt 0:06:47]} Nf4 {[%emt 0:13:08]} 27. Bxf4 {[%emt 0:02:58]} Rxf4 {[%emt 0:00:39]} 28. Ra6 {[%emt 0:02:11]} e4 {[%emt 0:07:55]} 29. Ng1 {[%emt 0:00:18]} e3 {[%emt 0:02:56]} 30. Qd3 {[%emt 0:00:34]} Rf6 {[%emt 0:06:05]} 31. Ra7 {[%emt 0:01:33]} Rf2 {[%emt 0:03:38]} 32. Nh5 {[%emt 0:00:55]} Rd2 {[%emt 0:01:37]} 33. Rxg7+ {[%emt 0:00:33]} Qxg7 {[%emt 0:00:23]} 34. Nxg7 {[%emt 0:00:13]} Rxd3 {[%emt 0:00:30]} 35. Nxe8 {[%emt 0:00:04]} Rd1 {[%emt 0:00:21]} 36. Nf6+ {[%emt 0:00:22]} Kf7 {[%emt 0:00:41]} 37. Ng4 {[%emt 0:01:00]} e2 {[%emt 0:01:14]} 38. Ne5+ {[%emt 0:00:04]} Ke6 {[%emt 0:00:59]} 39. Nef3 {[%emt 0:00:07]} e1=Q {[%emt 0:00:43]} 40. Nxe1 {[%emt 0:00:04]} Rxe1 {[%emt 0:00:06]} 41. h4 {[%emt 0:15:29]} Rb1 {[%emt 0:16:09]} 42. Kh2 {[%emt 0:00:13]} Rxb2 {[%emt 0:00:20]} 43. Nf3 {[%emt 0:00:04]} c5 {[%emt 0:01:33]} 44. Ng5+ {[%emt 0:00:15]} Kf5 {[%emt 0:00:10]} 45. Nxh7 {[%emt 0:00:16]} Rb3 {[%emt 0:00:14]} 0-1

[Event "7th Leer Open-A 2024"]
[Site "Leer"]
[Date "2024.10.31"]
[Round "2.24"]
[White "Langenberg, Magnus"]
[Black "Wagner, Jan"]
[Result "0-1"]
[ECO "B07"]
[WhiteElo "2026"]
[BlackElo "2137"]
[Annotator "RC"]
[PlyCount "98"]
[EventDate "2024.10.14"]
[EventType "swiss"]
[EventCountry "GER"]
[SourceTitle "playchess.com"]
[Source "ChessBase"]
[SourceQuality "1"]
[TimeControl "40/5400+30:900+30"]

1. e4 {[%emt 0:00:19]} g6 {[%emt 0:00:35]} 2. d4 {[%emt 0:00:31]} Bg7 {[%emt 0:00:12]} 3. Nf3 {[%emt 0:00:30]} d6 {[%emt 0:01:06]} 4. h3 {[%emt 0:00:47]} Nf6 {[%emt 0:00:33]} 5. Bd3 {[%emt 0:00:12]} O-O {[%emt 0:01:21]} 6. O-O {[%emt 0:00:20]} Nbd7 {[%emt 0:01:26]} 7. c3 {[%emt 0:01:08]} e5 {[%emt 0:01:03]} 8. Re1 {[%emt 0:01:38]} h6 {[%emt 0:02:37]} 9. a4 {[%emt 0:00:55]} Re8 {[%emt 0:01:18]} 10. Nbd2 {[%emt 0:04:52]} Nh5 {[%emt 0:03:54]} 11. Nc4 {[%emt 0:01:20]} Qf6 {[%emt 0:02:49]} 12. a5 {[%emt 0:03:31]} a6 {[%emt 0:03:45]} 13. Bf1 {[%emt 0:06:21]} Nf8 {[%emt 0:03:03]} 14. Kh2 {[%emt 0:08:47]} Nf4 {[%emt 0:04:54]} 15. g3 {[%emt 0:01:42]} Nxh3 {[%emt 0:06:34]} 16. Bxh3 {[%emt 0:01:58]} Bxh3 {[%emt 0:00:41]} 17. Nxd6 {[%emt 0:00:49]} cxd6 {[%emt 0:05:40]} 18. Kxh3 {[%emt 0:00:17]} exd4 {[%emt 0:03:05]} 19. cxd4 {[%emt 0:00:10]} Rxe4 {[%emt 0:01:33]} 20. Rxe4 {[%emt 0:00:37]} Qf5+ {[%emt 0:02:50]} 21. Rg4 {[%emt 0:00:26]} h5 {[%emt 0:00:48]} 22. Nh2 {[%emt 0:00:11]} hxg4+ {[%emt 0:06:50]} 23. Nxg4 {[%emt 0:00:18]} Ne6 {[%emt 0:01:18]} 24. Be3 {[%emt 0:00:44]} Rc8 {[%emt 0:04:29]} 25. Ra4 {[%emt 0:07:02]} Qd5 {[%emt 0:08:54]} 26. Nh2 {[%emt 0:05:35]} Rc5 {[%emt 0:08:44]} 27. Qd2 {[%emt 0:07:58]} Rb5 {[%emt 0:01:38]} 28. Rb4 {[%emt 0:02:11]} Rxb4 {[%emt 0:03:44]} 29. Qxb4 {[%emt 0:00:15]} Bxd4 {[%emt 0:00:56]} 30. Bxd4 {[%emt 0:03:01]} Nxd4 {[%emt 0:00:13]} 31. Qb6 {[%emt 0:00:54]} Ne6 {[%emt 0:05:32]} 32. f4 {[%emt 0:00:54]} Nc5 {[%emt 0:01:59]} 33. Qb4 {[%emt 0:02:54]} Nd3 {[%emt 0:05:58]} 34. Qd2 {[%emt 0:00:51]} Qh5+ {[%emt 0:03:45]} 35. Kg2 {[%emt 0:00:14]} Qd5+ {[%emt 0:00:02]} 36. Kh3 {[%emt 0:00:29]} Qe6+ {[%emt 0:00:23]} 37. Ng4 {[%emt 0:01:48]} Nc5 {[%emt 0:01:41]} 38. Qd4 {[%emt 0:01:29]} Kf8 {[%emt 0:02:13]} 39. b4 {[%emt 0:01:42]} Nd7 {[%emt 0:00:59]} 40. Kh4 {[%emt 0:04:57]} Qe7+ {[%emt 0:00:38]} 41. Kh3 {[%emt 0:15:10]} Qe6 {[%emt 0:15:46]} 42. Kh4 {[%emt 0:05:07]} Ke7 {[%emt 0:00:00]} 43. Qd2 {[%emt 0:00:00]} Qf5 {[%emt 0:00:00]} 44. Qe2+ {[%emt 0:00:00]} Kd8 {[%emt 0:00:00]} 45. Ne3 {[%emt 0:00:00]} Qe4 {[%emt 0:00:00]} 46. Kg5 {[%emt 0:00:00]} d5 {[%emt 0:00:00]} 47. Qd2 {[%emt 0:00:00]} d4 {[%emt 0:00:00]} 48. Nd1 {[%emt 0:00:00]} Qh1 {[%emt 0:00:00]} 49. g4 {[%emt 0:00:00]} Qh7 {[%emt 0:00:00]} 0-1

[Event "7th Leer Open-A 2024"]
[Site "Leer"]
[Date "2024.10.31"]
[Round "2.25"]
[White "Mueller-Ludwig, Kristin"]
[Black "Kummerow, Heiko"]
[Result "0-1"]
[ECO "B90"]
[WhiteElo "1971"]
[BlackElo "2074"]
[Annotator "RC"]
[PlyCount "80"]
[EventDate "2024.10.14"]
[EventType "swiss"]
[EventCountry "GER"]
[SourceTitle "playchess.com"]
[Source "ChessBase"]
[SourceQuality "1"]
[TimeControl "40/5400+30:900+30"]

1. e4 {[%emt 0:00:03]} c5 {[%emt 0:00:13]} 2. Nf3 {[%emt 0:00:07]} d6 {[%emt 0:00:06]} 3. d4 {[%emt 0:00:06]} cxd4 {[%emt 0:00:04]} 4. Nxd4 {[%emt 0:00:04]} Nf6 {[%emt 0:00:07]} 5. Nc3 {[%emt 0:00:05]} a6 {[%emt 0:00:03]} 6. Be3 {[%emt 0:01:32]} e5 {[%emt 0:00:12]} 7. Nb3 {[%emt 0:03:55]} Be7 {[%emt 0:00:22]} 8. a4 {[%emt 0:01:12]} Be6 {[%emt 0:02:29]} 9. Nd5 {[%emt 1:27:56]} Nbd7 {[%emt 0:05:07]} 10. f3 {[%emt 0:00:00]} Bxd5 {[%emt 0:04:48]} 11. exd5 {[%emt 0:00:00]} Nb6 {[%emt 0:00:15]} 12. c4 {[%emt 0:00:00]} Rc8 {[%emt 0:00:32]} 13. Nd2 {[%emt 0:00:00]} a5 {[%emt 0:10:08]} 14. Bd3 {[%emt 0:00:00]} Nh5 {[%emt 0:08:18]} 15. Qb3 {[%emt 0:00:00]} Nd7 {[%emt 0:02:29]} 16. Bf5 {[%emt 0:00:00]} Rc7 {[%emt 0:24:19]} 17. Qb5 {[%emt 0:00:00]} O-O {[%emt 0:09:42]} 18. Bxd7 {[%emt 0:00:00]} Rxd7 {[%emt 0:02:24]} 19. Bb6 {[%emt 0:00:00]} Qc8 {[%emt 0:03:41]} 20. g3 {[%emt 0:00:00]} Bg5 {[%emt 0:06:05]} 21. Bxa5 {[%emt 0:00:00]} Bxd2+ {[%emt 0:01:06]} 22. Kxd2 {[%emt 0:00:00]} e4 {[%emt 0:00:58]} 23. fxe4 {[%emt 0:00:00]} Nf6 {[%emt 0:00:18]} 24. Rae1 {[%emt 0:00:00]} Re8 {[%emt 0:01:52]} 25. e5 {[%emt 0:00:00]} dxe5 {[%emt 0:00:29]} 26. Bc3 {[%emt 0:00:00]} Rc7 {[%emt 0:04:22]} 27. b3 {[%emt 0:00:00]} Nxd5 {[%emt 0:02:46]} 28. cxd5 {[%emt 0:05:47]} Rxc3 {[%emt 0:00:13]} 29. Qxe8+ {[%emt 0:00:06]} Qxe8 {[%emt 0:00:04]} 30. Kxc3 {[%emt 0:00:03]} Qe7 {[%emt 0:04:25]} 31. Rd1 {[%emt 0:01:41]} Qd6 {[%emt 0:00:19]} 32. Rhe1 {[%emt 0:00:24]} Kf8 {[%emt 0:00:32]} 33. Re4 {[%emt 0:00:21]} Ke7 {[%emt 0:00:55]} 34. Rb4 {[%emt 0:01:09]} Qc5+ {[%emt 0:00:52]} 35. Rc4 {[%emt 0:00:12]} Qe3+ {[%emt 0:02:02]} 36. Kc2 {[%emt 0:01:31]} Kd6 {[%emt 0:00:52]} 37. a5 {[%emt 0:00:42]} e4 {[%emt 0:02:18]} 38. a6 {[%emt 0:01:52]} bxa6 {[%emt 0:00:16]} 39. Rc6+ {[%emt 0:00:12]} Kd7 {[%emt 0:00:11]} 40. Rxa6 {[%emt 0:00:16]} Qe2+ {[%emt 0:00:06]} 0-1

[Event "7th Leer Open-A 2024"]
[Site "Leer"]
[Date "2024.10.31"]
[Round "2.26"]
[White "Vandenhole, Kobe"]
[Black "Kutz, Ida Klara"]
[Result "1-0"]
[ECO "B12"]
[WhiteElo "2128"]
[BlackElo "1802"]
[Annotator "RC"]
[PlyCount "79"]
[EventDate "2024.10.14"]
[EventType "swiss"]
[EventCountry "GER"]
[SourceTitle "playchess.com"]
[Source "ChessBase"]
[SourceQuality "1"]
[TimeControl "40/5400+30:900+30"]

1. e4 {[%emt 0:00:04]} c6 {[%emt 0:00:11]} 2. d4 {[%emt 0:00:10]} d5 {[%emt 0:00:13]} 3. e5 {[%emt 0:00:05]} Bf5 {[%emt 0:00:19]} 4. h4 {[%emt 0:00:15]} h6 {[%emt 0:01:57]} 5. g4 {[%emt 0:00:10]} Bd7 {[%emt 0:03:32]} 6. Nd2 {[%emt 0:00:39]} c5 {[%emt 0:02:28]} 7. dxc5 {[%emt 0:03:57]} Qc7 {[%emt 0:01:01]} 8. f4 {[%emt 0:02:57]} Qxc5 {[%emt 0:00:37]} 9. c3 {[%emt 0:02:32]} Qe3+ {[%emt 0:05:18]} 10. Ne2 {[%emt 0:02:13]} Bxg4 {[%emt 0:02:25]} 11. Nb3 {[%emt 0:01:01]} Bxe2 {[%emt 0:13:26]} 12. Bxe3 {[%emt 0:00:38]} Bxd1 {[%emt 0:00:07]} 13. Rxd1 {[%emt 0:00:18]} e6 {[%emt 0:02:01]} 14. Bb5+ {[%emt 0:02:45]} Kd8 {[%emt 0:09:16]} 15. c4 {[%emt 0:03:47]} a6 {[%emt 0:10:28]} 16. Bb6+ {[%emt 0:03:03]} Kc8 {[%emt 0:00:11]} 17. cxd5 {[%emt 0:08:32]} Bb4+ {[%emt 0:01:56]} 18. Kf2 {[%emt 0:00:07]} axb5 {[%emt 0:03:55]} 19. Rc1+ {[%emt 0:00:10]} Nc6 {[%emt 0:01:28]} 20. dxc6 {[%emt 1:07:07]} bxc6 {[%emt 0:00:10]} 21. a3 {[%emt 0:00:00]} Kb7 {[%emt 0:02:56]} 22. Be3 {[%emt 0:00:00]} Be7 {[%emt 0:02:22]} 23. h5 {[%emt 0:00:00]} b4 {[%emt 0:09:18]} 24. axb4 {[%emt 0:00:00]} Bxb4 {[%emt 0:00:10]} 25. Rc4 {[%emt 0:00:00]} Be7 {[%emt 0:06:23]} 26. Nc5+ {[%emt 0:00:00]} Kb6 {[%emt 0:05:07]} 27. Rhc1 {[%emt 0:00:00]} Kc7 {[%emt 0:02:57]} 28. Ne4 {[%emt 0:00:00]} Bh4+ {[%emt 0:01:42]} 29. Kg2 {[%emt 0:00:00]} Ne7 {[%emt 0:00:33]} 30. Kh3 {[%emt 0:00:00]} Ra6 {[%emt 0:00:35]} 31. Bc5 {[%emt 0:00:00]} f5 {[%emt 0:05:05]} 32. exf6 {[%emt 0:00:00]} Bxf6 {[%emt 0:00:31]} 33. Nxf6 {[%emt 0:00:00]} Nd5 {[%emt 0:00:43]} 34. Nxd5+ {[%emt 0:00:00]} exd5 {[%emt 0:00:11]} 35. R4c3 {[%emt 0:07:30]} Re8 {[%emt 0:01:29]} 36. Rg1 {[%emt 0:00:00]} Rg8 {[%emt 0:01:08]} 37. Rg6 {[%emt 0:00:00]} Ra4 {[%emt 0:01:10]} 38. f5 {[%emt 0:00:00]} d4 {[%emt 0:01:09]} 39. Rcg3 {[%emt 0:00:00]} Rc4 {[%emt 0:01:40]} 40. b4 {[%emt 0:00:00]} 1-0

[Event "7th Leer Open-A 2024"]
[Site "Leer"]
[Date "2024.10.31"]
[Round "2.27"]
[White "Weirauch, Kevin"]
[Black "Brandes, Stephan"]
[Result "0-1"]
[ECO "C41"]
[WhiteElo "1850"]
[BlackElo "2125"]
[Annotator "RC"]
[PlyCount "92"]
[EventDate "2024.10.14"]
[EventType "swiss"]
[EventCountry "GER"]
[SourceTitle "playchess.com"]
[Source "ChessBase"]
[SourceQuality "1"]
[TimeControl "40/5400+30:900+30"]

1. Nf3 {[%emt 0:00:04]} d6 {[%emt 0:00:49]} 2. d4 {[%emt 0:00:39]} Nd7 {[%emt 0:00:10]} 3. e4 {[%emt 0:02:34]} e5 {[%emt 0:01:13]} 4. Bc4 {[%emt 0:01:55]} Be7 {[%emt 0:02:23]} 5. O-O {[%emt 0:03:11]} c6 {[%emt 0:02:41]} 6. c3 {[%emt 0:01:37]} b5 {[%emt 0:02:26]} 7. Bb3 {[%emt 0:00:11]} Bb7 {[%emt 0:03:22]} 8. Qe2 {[%emt 0:04:29]} a6 {[%emt 0:02:12]} 9. a4 {[%emt 0:01:50]} h6 {[%emt 0:02:43]} 10. Rd1 {[%emt 0:02:48]} Qc7 {[%emt 0:02:10]} 11. Nbd2 {[%emt 0:07:29]} Ngf6 {[%emt 0:03:29]} 12. Nf1 {[%emt 0:02:17]} Kf8 {[%emt 0:09:06]} 13. Ng3 {[%emt 0:03:26]} g6 {[%emt 0:00:48]} 14. h4 {[%emt 0:07:50]} Re8 {[%emt 0:16:20]} 15. Nh2 {[%emt 0:12:23]} bxa4 {[%emt 0:05:47]} 16. Bxa4 {[%emt 0:01:04]} d5 {[%emt 0:02:35]} 17. h5 {[%emt 0:13:59]} exd4 {[%emt 0:04:26]} 18. hxg6 {[%emt 0:01:56]} fxg6 {[%emt 0:00:14]} 19. Ng4 {[%emt 0:02:45]} Kg7 {[%emt 0:04:22]} 20. cxd4 {[%emt 0:06:35]} Nxg4 {[%emt 0:03:46]} 21. Qxg4 {[%emt 0:00:18]} Nf6 {[%emt 0:00:43]} 22. Qf3 {[%emt 0:04:36]} dxe4 {[%emt 0:02:26]} 23. Nxe4 {[%emt 0:03:29]} Nxe4 {[%emt 0:05:26]} 24. Qxe4 {[%emt 0:00:14]} Bf6 {[%emt 0:01:30]} 25. Qd3 {[%emt 0:02:21]} Rd8 {[%emt 0:02:49]} 26. Bc2 {[%emt 0:01:00]} Qf7 {[%emt 0:00:11]} 27. Bb3 {[%emt 0:02:06]} Qd7 {[%emt 0:00:09]} 28. Bc2 {[%emt 0:00:56]} Qg4 {[%emt 0:03:59]} 29. Ra4 {[%emt 0:03:52]} c5 {[%emt 0:02:50]} 30. d5 {[%emt 0:00:15]} Bd4 {[%emt 0:01:06]} 31. Rxd4 {[%emt 0:04:47]} cxd4 {[%emt 0:00:02]} 32. Qxd4+ {[%emt 0:00:17]} Qxd4 {[%emt 0:00:08]} 33. Rxd4 {[%emt 0:00:09]} Rxd5 {[%emt 0:01:15]} 34. Be3 {[%emt 0:00:59]} Rc8 {[%emt 0:01:03]} 35. Be4 {[%emt 0:01:09]} Rc1+ {[%emt 0:01:25]} 36. Bxc1 {[%emt 0:00:21]} Rxd4 {[%emt 0:00:01]} 37. Bxh6+ {[%emt 0:00:19]} Kxh6 {[%emt 0:00:10]} 38. Bxb7 {[%emt 0:00:02]} a5 {[%emt 0:00:24]} 39. b3 {[%emt 0:00:21]} Rd3 {[%emt 0:00:45]} 40. Kh2 {[%emt 0:02:14]} Rxb3 {[%emt 0:00:10]} 41. Bc6 {[%emt 0:15:15]} Kg5 {[%emt 0:15:48]} 42. g3 {[%emt 0:01:32]} Rb4 {[%emt 0:00:27]} 43. Kh3 {[%emt 0:00:40]} a4 {[%emt 0:00:28]} 44. f4+ {[%emt 0:00:08]} Kf6 {[%emt 0:00:11]} 45. Bd5 {[%emt 0:00:19]} Rd4 {[%emt 0:00:41]} 46. Bg8 {[%emt 0:00:22]} a3 {[%emt 0:00:17]} 0-1

[Event "7th Leer Open-A 2024"]
[Site "Leer"]
[Date "2024.10.31"]
[Round "2.28"]
[White "Porth, Hartmut"]
[Black "Hansch, Karsten"]
[Result "0-1"]
[ECO "B21"]
[WhiteElo "1982"]
[BlackElo "2209"]
[Annotator "RC"]
[PlyCount "86"]
[EventDate "2024.10.14"]
[EventType "swiss"]
[EventCountry "GER"]
[SourceTitle "playchess.com"]
[Source "ChessBase"]
[SourceQuality "1"]
[TimeControl "40/5400+30:900+30"]

1. e4 {[%emt 0:03:40]} c5 {[%emt 0:00:03]} 2. d3 {[%emt 0:00:09]} Nc6 {[%emt 0:00:04]} 3. f4 {[%emt 0:00:12]} d5 {[%emt 0:00:50]} 4. Be2 {[%emt 0:00:09]} e6 {[%emt 0:00:37]} 5. c3 {[%emt 0:00:08]} Bd6 {[%emt 0:00:15]} 6. Nf3 {[%emt 0:00:56]} Nge7 {[%emt 0:00:07]} 7. O-O {[%emt 0:00:12]} O-O {[%emt 0:00:05]} 8. Kh1 {[%emt 0:09:55]} f6 {[%emt 0:00:35]} 9. Na3 {[%emt 0:06:24]} b6 {[%emt 0:01:05]} 10. Qe1 {[%emt 0:04:29]} Ba6 {[%emt 0:00:44]} 11. d4 {[%emt 0:16:44]} Bxe2 {[%emt 0:04:22]} 12. Qxe2 {[%emt 0:00:04]} cxd4 {[%emt 0:00:25]} 13. exd5 {[%emt 0:03:30]} exd5 {[%emt 0:00:20]} 14. Qe6+ {[%emt 0:03:10]} Kh8 {[%emt 0:00:30]} 15. Nb5 {[%emt 0:00:17]} Bc5 {[%emt 0:00:40]} 16. Nfxd4 {[%emt 0:08:48]} Bxd4 {[%emt 0:00:54]} 17. Nxd4 {[%emt 0:09:03]} Nxd4 {[%emt 0:00:15]} 18. cxd4 {[%emt 0:00:07]} Re8 {[%emt 0:00:32]} 19. Bd2 {[%emt 0:04:21]} Ng8 {[%emt 0:00:45]} 20. Qh3 {[%emt 0:06:15]} Re2 {[%emt 0:00:30]} 21. Qd3 {[%emt 0:01:01]} Qe7 {[%emt 0:00:14]} 22. Rae1 {[%emt 0:06:38]} Re8 {[%emt 0:00:24]} 23. Kg1 {[%emt 0:00:06]} Qe4 {[%emt 0:00:39]} 24. Qxe4 {[%emt 0:01:20]} R8xe4 {[%emt 0:00:27]} 25. Rxe2 {[%emt 0:01:30]} Rxe2 {[%emt 0:00:20]} 26. Bc3 {[%emt 0:05:24]} h5 {[%emt 0:01:26]} 27. Re1 {[%emt 0:01:09]} Rxe1+ {[%emt 0:00:26]} 28. Bxe1 {[%emt 0:00:03]} Kh7 {[%emt 0:00:03]} 29. Kf2 {[%emt 0:00:39]} Kg6 {[%emt 0:00:41]} 30. Kf3 {[%emt 0:00:22]} Ne7 {[%emt 0:00:13]} 31. a4 {[%emt 0:04:36]} Nc6 {[%emt 0:00:55]} 32. Ke3 {[%emt 0:01:23]} Kf5 {[%emt 0:00:21]} 33. h3 {[%emt 0:00:35]} Ke6 {[%emt 0:00:25]} 34. g4 {[%emt 0:00:31]} hxg4 {[%emt 0:01:02]} 35. hxg4 {[%emt 0:00:03]} f5 {[%emt 0:00:05]} 36. gxf5+ {[%emt 0:01:15]} Kxf5 {[%emt 0:00:02]} 37. b4 {[%emt 0:00:54]} Kg4 {[%emt 0:00:49]} 38. b5 {[%emt 0:00:24]} Na5 {[%emt 0:00:05]} 39. Bb4 {[%emt 0:01:31]} Nc4+ {[%emt 0:00:08]} 40. Kd3 {[%emt 0:01:12]} Kxf4 {[%emt 0:00:17]} 41. a5 {[%emt 0:15:24]} Nxa5 {[%emt 0:15:23]} 42. Bd6+ {[%emt 0:00:12]} Kf3 {[%emt 0:00:04]} 43. Bb8 {[%emt 0:00:00]} Nc4 {[%emt 0:00:00]} 0-1

[Event "7th Leer Open-A 2024"]
[Site "Leer"]
[Date "2024.10.31"]
[Round "2.29"]
[White "Kirschbaum, Gunnar"]
[Black "De Boer, Bas"]
[Result "0-1"]
[ECO "E32"]
[WhiteElo "1965"]
[BlackElo "2174"]
[Annotator "RC"]
[PlyCount "78"]
[EventDate "2024.10.14"]
[EventType "swiss"]
[EventCountry "GER"]
[SourceTitle "playchess.com"]
[Source "ChessBase"]
[SourceQuality "1"]
[TimeControl "40/5400+30:900+30"]

1. d4 {[%emt 0:06:03]} Nf6 {[%emt 0:00:06]} 2. c4 {[%emt 0:00:04]} e6 {[%emt 0:00:06]} 3. Nc3 {[%emt 0:00:31]} Bb4 {[%emt 0:00:06]} 4. Qc2 {[%emt 0:02:29]} O-O {[%emt 0:00:12]} 5. Nf3 {[%emt 0:09:20]} d5 {[%emt 0:00:11]} 6. Bg5 {[%emt 0:01:14]} c5 {[%emt 0:09:51]} 7. e3 {[%emt 0:07:50]} h6 {[%emt 0:02:37]} 8. Bxf6 {[%emt 0:07:02]} Qxf6 {[%emt 0:00:09]} 9. a3 {[%emt 0:00:39]} Bxc3+ {[%emt 0:05:17]} 10. Qxc3 {[%emt 0:01:44]} dxc4 {[%emt 0:01:16]} 11. Bxc4 {[%emt 0:00:37]} cxd4 {[%emt 0:03:22]} 12. Qxd4 {[%emt 0:06:25]} Qe7 {[%emt 0:03:06]} 13. Rd1 {[%emt 0:01:51]} Nc6 {[%emt 0:01:20]} 14. Qd6 {[%emt 0:02:10]} Qf6 {[%emt 0:00:15]} 15. Qd2 {[%emt 0:05:41]} Rd8 {[%emt 0:00:32]} 16. Qc3 {[%emt 0:00:22]} Rxd1+ {[%emt 0:00:29]} 17. Kxd1 {[%emt 0:00:03]} e5 {[%emt 0:03:14]} 18. Bd5 {[%emt 0:08:17]} Bg4 {[%emt 0:01:27]} 19. Bxc6 {[%emt 0:03:41]} bxc6 {[%emt 0:02:55]} 20. e4 {[%emt 0:01:58]} Bxf3+ {[%emt 0:07:08]} 21. Qxf3 {[%emt 0:03:03]} Qe6 {[%emt 0:00:37]} 22. Kc2 {[%emt 0:15:17]} Rd8 {[%emt 0:02:58]} 23. Kb1 {[%emt 0:05:07]} Rd4 {[%emt 0:00:22]} 24. Qf5 {[%emt 0:03:43]} Qxf5 {[%emt 0:07:45]} 25. exf5 {[%emt 0:00:03]} Rd2 {[%emt 0:00:06]} 26. Rc1 {[%emt 0:02:05]} Rxf2 {[%emt 0:00:10]} 27. Rxc6 {[%emt 0:00:05]} Rxf5 {[%emt 0:01:02]} 28. Rc8+ {[%emt 0:00:45]} Kh7 {[%emt 0:00:14]} 29. Ra8 {[%emt 0:00:20]} Rf2 {[%emt 0:02:27]} 30. Rxa7 {[%emt 0:00:08]} f5 {[%emt 0:00:14]} 31. Re7 {[%emt 0:01:16]} Rxg2 {[%emt 0:02:29]} 32. Rxe5 {[%emt 0:00:46]} f4 {[%emt 0:00:13]} 33. h4 {[%emt 0:01:47]} g5 {[%emt 0:02:27]} 34. hxg5 {[%emt 0:00:38]} hxg5 {[%emt 0:00:15]} 35. Rf5 {[%emt 0:00:16]} Kg6 {[%emt 0:00:29]} 36. Rf8 {[%emt 0:00:07]} Re2 {[%emt 0:00:10]} 37. b4 {[%emt 0:04:33]} Re5 {[%emt 0:00:18]} 38. a4 {[%emt 0:00:43]} Kg7 {[%emt 0:00:21]} 39. Rc8 {[%emt 0:00:39]} f3 {[%emt 0:00:24]} 0-1

[Event "7th Leer Open-A 2024"]
[Site "Leer"]
[Date "2024.10.31"]
[Round "2.30"]
[White "Piepenhagen, Eric"]
[Black "Helms, Finn"]
[Result "1/2-1/2"]
[ECO "B15"]
[WhiteElo "1901"]
[BlackElo "2149"]
[Annotator "RC"]
[PlyCount "41"]
[EventDate "2024.10.14"]
[EventType "swiss"]
[EventCountry "GER"]
[SourceTitle "playchess.com"]
[Source "ChessBase"]
[SourceQuality "1"]
[TimeControl "40/5400+30:900+30"]

1. e4 {[%emt 0:00:03]} c6 {[%emt 0:00:05]} 2. d4 {[%emt 0:00:05]} d5 {[%emt 0:00:02]} 3. Nd2 {[%emt 0:00:06]} dxe4 {[%emt 0:00:12]} 4. Nxe4 {[%emt 0:00:06]} Nf6 {[%emt 0:00:06]} 5. Nxf6+ {[%emt 0:00:05]} exf6 {[%emt 0:00:01]} 6. c3 {[%emt 0:00:11]} Bd6 {[%emt 0:00:04]} 7. Bd3 {[%emt 0:00:06]} O-O {[%emt 0:00:05]} 8. Ne2 {[%emt 0:00:05]} Re8 {[%emt 0:00:21]} 9. O-O {[%emt 0:00:02]} Nd7 {[%emt 0:01:35]} 10. Ng3 {[%emt 0:00:02]} Nf8 {[%emt 0:03:51]} 11. f4 {[%emt 0:00:05]} Bc7 {[%emt 0:29:43]} 12. Qf3 {[%emt 0:03:02]} Qd5 {[%emt 0:08:21]} 13. Be4 {[%emt 0:04:20]} Qa5 {[%emt 0:08:34]} 14. b4 {[%emt 0:07:01]} Qb5 {[%emt 0:00:52]} 15. a4 {[%emt 0:02:20]} Qc4 {[%emt 0:03:03]} 16. a5 {[%emt 0:05:27]} a6 {[%emt 0:02:11]} 17. f5 {[%emt 0:05:44]} Bxg3 {[%emt 0:07:22]} 18. hxg3 {[%emt 0:01:21]} h6 {[%emt 0:05:04]} 19. Bd2 {[%emt 0:07:00]} Nh7 {[%emt 0:00:52]} 20. Rae1 {[%emt 0:18:17]} Bd7 {[%emt 0:02:21]} 21. g4 {[%emt 0:01:29]} 1/2-1/2

[Event "7th Leer Open-A 2024"]
[Site "Leer"]
[Date "2024.10.31"]
[Round "2.31"]
[White "Schier, Richard"]
[Black "Graf, David"]
[Result "0-1"]
[ECO "A17"]
[WhiteElo "1881"]
[BlackElo "1782"]
[Annotator "NA RC"]
[PlyCount "50"]
[EventDate "2024.10.14"]
[EventType "swiss"]
[EventCountry "GER"]
[SourceTitle "playchess.com"]
[Source "ChessBase"]
[SourceQuality "1"]
[TimeControl "40/5400+30:900+30"]

1. Nf3 {[%emt 0:00:03]} Nf6 {[%emt 0:03:41]} 2. c4 {[%emt 0:00:13]} e6 {[%emt 0:00:23]} 3. Nc3 {[%emt 0:00:15]} Bb4 {[%emt 0:01:00]} 4. Qc2 {[%emt 0:00:24]} Bxc3 {[%emt 0:01:26]} 5. Qxc3 {[%emt 0:01:07]} c5 {[%emt 0:01:58]} 6. e3 {[%emt 0:02:31]} O-O {[%emt 0:00:34]} 7. b3 {[%emt 0:02:06]} Nc6 {[%emt 0:04:22]} 8. Bb2 {[%emt 0:01:14]} b6 {[%emt 0:08:00]} 9. Be2 {[%emt 0:01:41]} Bb7 {[%emt 0:00:58]} 10. g4 {[%emt 0:06:04]} d5 {[%emt 0:04:08]} 11. Rg1 {[%emt 0:05:47]} e5 {[%emt 0:20:01]} 12. cxd5 {[%emt 0:03:50]} Nxd5 {[%emt 0:01:23]} 13. Qc2 {[%emt 0:05:13]} Ndb4 {[%emt 0:02:10]} 14. Qb1 {[%emt 0:00:43]} Re8 {[%emt 0:02:38]} 15. a3 {[%emt 0:04:35]} Nd5 {[%emt 0:07:27]} 16. h4 {[%emt 0:02:38]} e4 {[%emt 0:07:25]} 17. Ng5 {[%emt 0:00:58]} Qe7 {[%emt 0:00:21]} 18. Bf3 {[%emt 0:11:32]} Nf6 {[%emt 0:14:23]} 19. Bxf6 {[%emt 0:01:36]} Qxf6 {[%emt 0:00:39]} 20. Bxe4 {[%emt 0:01:46]} h6 {[%emt 0:01:17]} 21. Bh7+ {[%emt 0:07:24]} Kh8 {[%emt 0:01:14]} 22. Ne4 {[%emt 0:00:54]} Qe7 {[%emt 0:05:20]} 23. h5 {[%emt 0:02:58]} Ne5 {[%emt 0:00:20]} 24. Ke2 {[%emt 0:01:43]} Ba6+ {[%emt 0:00:19]} 25. Kd1 {[%emt 0:00:50]} Bd3 {[%emt 0:00:37]} 0-1